bitfinex/quotes_SOLUSD_20230102
["timestamp","ask_amount","ask_price","bid_price","bid_amount"]
[1672627531421,5.77,9.93,9.9249,15.80730786]
[1672627531734,30.0,9.9298,9.9248,20.0]
[1672627531927,75.67,9.9297,9.9248,20.0]
[1672627532140,30.0,9.9296,9.9248,20.0]
[1672627532358,30.0,9.9294,9.9248,20.0]
[1672627532557,75.67,9.9293,9.9228,20.0]
[1672627532772,30.0,9.9292,9.9228,20.0]
[1672627532994,30.0,9.929,9.9228,20.0]
[1672627533606,75.67,9.9291,9.9229,30.0]
[1672627533812,30.0,9.9303,9.923,20.0]
[1672627534027,30.0,9.9301,9.923,35.80730786]
[1672627534237,75.66,9.93,9.923,35.80730786]
[1672627534467,30.0,9.9299,9.923,35.80730786]
[1672627534678,30.0,9.9297,9.923,20.0]
[1672627535011,30.0,9.9295,9.9228,20.0]
[1672627535189,75.67,9.9294,9.9228,20.0]
[1672627535389,30.0,9.9293,9.9228,20.0]
[1672627535599,75.67,9.9292,9.9228,35.80730786]
[1672627536247,30.0,9.9291,9.9228,35.80730786]
[1672627536443,30.0,9.9291,9.9228,20.0]
[1672627536654,30.0,9.9289,9.9228,20.0]
[1672627536893,30.0,9.9287,9.9228,20.0]
[1672627537086,75.68,9.9286,9.9228,20.0]
[1672627537303,30.0,9.9285,9.9228,20.0]
[1672627537621,30.0,9.9283,9.9228,20.0]
[1672627537826,30.0,9.9281,9.9228,20.0]
[1672627538040,75.68,9.928,9.9228,20.0]
[1672627538236,30.0,9.9279,9.9228,20.0]
[1672627540152,88.21753007,9.9279,9.9228,20.0]
[1672627549087,138.56307251,9.9279,9.9228,20.0]
[1672627551299,108.56307251,9.9279,9.9228,20.0]
[1672627551844,30.0,9.9278,9.9228,20.0]
[1672627552353,30.0,9.9277,9.9228,20.0]
[1672627552565,108.56307251,9.9278,9.9228,20.0]
[1672627553200,30.0,9.9277,9.9228,20.0]
[1672627553601,108.56307251,9.9278,9.9228,20.0]
[1672627553831,30.0,9.9287,9.9228,20.0]
[1672627554140,108.56307251,9.9277,9.9228,20.0]
[1672627554354,30.0,9.9276,9.9228,20.0]
[1672627555185,138.56307251,9.9276,9.9228,20.0]
[1672627555828,30.0,9.9274,9.9228,20.0]
[1672627556142,30.0,9.9272,9.9228,20.0]
[1672627556761,138.56307251,9.9272,9.9228,20.0]
[1672627557822,108.56307251,9.9272,9.9228,20.0]
[1672627558355,30.0,9.9271,9.9228,20.0]
[1672627559077,138.56307251,9.9271,9.9228,20.0]
[1672627559287,138.56307251,9.9271,9.9229,20.0]
[1672627559488,138.56307251,9.9271,9.9222,20.0]
[1672627563074,108.56307251,9.9271,9.9222,20.0]
[1672627564439,30.0,9.927,9.9222,20.0]
[1672627565052,138.56307251,9.927,9.9222,20.0]
[1672627569160,138.56307251,9.927,9.9202,23.9416]
[1672627569372,30.0,9.9268,9.9118,30.0]
[1672627569697,30.0,9.9266,9.913,30.0]
[1672627569888,30.0,9.9266,9.9131,20.0]
[1672627569889,75.69,9.9265,9.9131,20.0]
[1672627570095,30.0,9.9264,9.9132,30.0]
[1672627570427,30.0,9.9262,9.9134,30.0]
[1672627570633,30.0,9.926,9.9136,30.0]
[1672627570958,30.0,9.9258,9.9138,30.0]
[1672627571283,30.0,9.9256,9.914,30.0]
[1672627571477,75.7,9.9255,9.914,30.0]
[1672627571686,30.0,9.9254,9.9142,30.0]
[1672627571885,30.0,9.9252,9.9144,30.0]
[1672627572095,75.7,9.9251,9.9144,30.0]
[1672627572312,30.0,9.925,9.9145,20.0]
[1672627572512,30.0,9.9248,9.9145,20.0]
[1672627572718,75.71,9.9247,9.9143,20.0]
[1672627572956,30.0,9.9246,9.9143,20.0]
[1672627573142,30.0,9.9244,9.9143,20.0]
[1672627573355,75.71,9.9243,9.9143,20.0]
[1672627573586,30.0,9.9242,9.9143,20.0]
[1672627573897,30.0,9.924,9.9143,20.0]
[1672627574111,30.0,9.9238,9.9143,20.0]
[1672627574309,75.71,9.9237,9.9123,20.0]
[1672627574633,30.0,9.9236,9.9123,138.3137]
[1672627574837,30.0,9.9234,9.9124,50.0]
[1672627575044,30.0,9.9232,9.9124,187.5631]
[1672627575252,75.72,9.9231,9.9124,187.5631]
[1672627575470,30.0,9.923,9.9124,157.5631]
[1672627575683,75.72,9.9229,9.9125,137.5631]
[1672627575877,30.0,9.9228,9.9126,20.0]
[1672627576087,75.72,9.9227,9.9126,20.0]
[1672627576300,30.0,9.9226,9.9127,137.5631]
[1672627576517,30.0,9.9224,9.9128,20.0]
[1672627576731,30.0,9.9222,9.9128,20.0]
[1672627577037,30.0,9.922,9.9129,15.80730786]
[1672627577247,30.0,9.9218,9.913,20.0]
[1672627577454,75.73,9.9217,9.913,20.0]
[1672627577661,30.0,9.9216,9.9131,15.80730786]
[1672627577874,75.73,9.9215,9.9132,20.0]
[1672627578084,30.0,9.9214,9.9132,20.0]
[1672627578521,30.0,9.9214,9.9132,35.80730786]
[1672627578725,30.0,9.9212,9.9132,35.80730786]
[1672627579356,30.0,9.921,9.9132,35.80730786]
[1672627579774,23.9305,9.9211,9.9133,30.0]
[1672627579987,30.0,9.9209,9.9134,20.0]
[1672627580849,30.0,9.9209,9.9132,30.0]
[1672627581149,30.0,9.9207,9.9133,20.0]
[1672627581365,30.0,9.9207,9.9131,20.0]
[1672627581877,30.0,9.9207,9.913,20.0]
[1672627582091,53.9092,9.9207,9.913,20.0]
[1672627582415,53.9092,9.9207,9.9132,15.80730786]
[1672627582934,53.9092,9.9207,9.9133,20.0]
[1672627583343,53.9092,9.9207,9.9133,35.80730786]
[1672627588173,53.9092,9.9207,9.9134,30.0]
[1672627588383,53.9092,9.9207,9.9135,20.0]
[1672627588611,53.9092,9.9207,9.9135,35.80730786]
[1672627588820,53.9092,9.9207,9.9136,15.80730786]
[1672627589009,53.9092,9.9207,9.9137,20.0]
[1672627589438,53.9092,9.9207,9.9138,15.80730786]
[1672627589865,53.9092,9.9207,9.9139,20.0]
[1672627590496,23.9092,9.9207,9.9139,20.0]
[1672627590705,23.9092,9.9207,9.9139,35.80730786]
[1672627594514,30.0,9.9206,9.9139,35.80730786]
[1672627599961,23.9092,9.9207,9.914,30.0]
[1672627600171,23.9092,9.9207,9.9141,20.0]
[1672627600386,23.9092,9.9207,9.9141,35.80730786]
[1672627600712,23.9092,9.9207,9.9142,15.80730786]
[1672627600914,23.9092,9.9207,9.9143,30.0]
[1672627601239,23.9092,9.9207,9.9144,35.80730786]
[1672627604829,23.9092,9.9207,9.9145,15.80730786]
[1672627605024,23.9092,9.9207,9.9146,20.0]
[1672627605445,23.9092,9.9207,9.9146,35.80730786]
[1672627613870,23.9092,9.9207,9.9147,30.0]
[1672627614080,23.9092,9.9207,9.9148,20.0]
[1672627614300,23.9092,9.9207,9.9148,35.80730786]
[1672627614488,23.9092,9.9207,9.9149,15.80730786]
[1672627614703,23.9092,9.9207,9.9151,30.0]
[1672627614908,23.9092,9.9207,9.9152,20.0]
[1672627615118,23.9092,9.9207,9.9153,30.0]
[1672627615327,23.9092,9.9207,9.9154,20.0]
[1672627618698,23.9092,9.9207,9.9155,30.0]
[1672627621208,23.9092,9.9207,9.9154,20.0]
[1672627621432,23.9092,9.9207,9.915,20.0]
[1672627631101,23.9092,9.9207,9.9151,30.0]
[1672627631314,23.9092,9.9207,9.9152,20.0]
[1672627637538,23.9092,9.9207,9.915,20.0]
[1672627646971,23.9092,9.9207,9.9151,30.0]
[1672627647187,23.9092,9.9207,9.9152,20.0]
[1672627652379,23.9092,9.9207,9.9135,30.0]
[1672627652582,23.9092,9.9207,9.9137,30.0]
[1672627652795,23.9092,9.9207,9.9138,20.0]
[1672627653405,23.9092,9.9207,9.9139,15.80730786]
[1672627653637,23.9092,9.9207,9.914,50.0]
[1672627654061,23.9092,9.9207,9.9141,15.80730786]
[1672627654251,23.9092,9.9207,9.9142,20.0]
[1672627654572,23.9092,9.9207,9.9143,30.0]
[1672627654790,23.9092,9.9207,9.9144,20.0]
[1672627655610,23.9092,9.9207,9.9145,30.0]
[1672627655827,23.9092,9.9207,9.9146,20.0]
[1672627656051,23.9092,9.9207,9.9147,30.0]
[1672627656243,23.9092,9.9207,9.9148,20.0]
[1672627656455,23.9092,9.9207,9.9149,30.0]
[1672627656782,23.9092,9.9207,9.9151,30.0]
[1672627657190,23.9092,9.9207,9.9153,30.0]
[1672627657401,23.9092,9.9207,9.9154,20.0]
[1672627657612,23.9092,9.9207,9.9155,30.0]
[1672627657823,23.9092,9.9207,9.9155,98.35311339]
[1672627660910,23.9092,9.9207,9.9156,15.80730786]
[1672627661310,23.9092,9.9207,9.9157,30.0]
[1672627663328,23.9092,9.9207,9.9159,30.0]
[1672627663943,23.9092,9.9207,9.9159,45.80730786]
[1672627675290,23.9092,9.9207,9.9159,30.0]
[1672627678576,23.9092,9.9207,9.9153,68.35311339]
[1672627678766,23.9092,9.9207,9.9154,20.0]
[1672627679518,23.9092,9.9207,9.9141,20.0]
[1672627682358,23.9092,9.9207,9.9138,20.0]
[1672627682987,23.9092,9.9207,9.9139,30.0]
[1672627683190,23.9092,9.9207,9.914,20.0]
[1672627687178,23.9092,9.9207,9.9141,30.0]
[1672627687385,23.9092,9.9207,9.9142,20.0]
[1672627688131,23.9092,9.9207,9.9143,30.0]
[1672627688345,23.9092,9.9207,9.9145,30.0]
[1672627688746,23.9092,9.9207,9.9146,20.0]
[1672627688978,23.9092,9.9207,9.9147,30.0]
[1672627689181,23.9092,9.9207,9.9147,45.80730786]
[1672627689401,23.9092,9.9207,9.9149,30.0]
[1672627689805,23.9092,9.9207,9.9151,30.0]
[1672627690443,23.9092,9.9207,9.9152,20.0]
[1672627690655,23.9092,9.9207,9.9153,30.0]
[1672627690871,23.9092,9.9207,9.9154,20.0]
[1672627692848,23.9092,9.9207,9.9155,30.0]
[1672627698209,23.9092,9.9207,9.9155,45.80730786]
[1672627705306,23.9092,9.9207,9.9155,30.0]
[1672627715283,0.27489177,15.546,9.9155,30.0]
[1672627715284,75.71,9.9239,9.9155,30.0]
[1672627715504,75.68,9.9282,9.9157,30.0]
[1672627715691,75.67,9.9295,9.92,5.74]
[1672627715900,99.0452,9.9298,9.9201,163.73]
[1672627716125,99.0452,9.9298,9.9202,30.0]
[1672627716333,30.0,9.9297,9.9204,30.0]
[1672627716545,75.67,9.9296,9.9204,30.0]
[1672627716757,75.67,9.9296,9.9206,30.0]
[1672627717165,23.3752,9.9295,9.9207,44.7026]
[1672627717371,23.3752,9.9295,9.9208,30.0]
[1672627717372,75.67,9.9294,9.9208,30.0]
[1672627717926,30.0,9.9292,9.9209,20.0]
[1672627718230,30.0,9.929,9.9209,20.0]
[1672627718426,30.0,9.9288,9.9209,20.0]
[1672627718641,75.67,9.9287,9.9209,20.0]
[1672627718849,30.0,9.9286,9.9209,20.0]
[1672627719052,30.0,9.9284,9.9209,20.0]
[1672627719263,75.68,9.9283,9.9209,20.0]
[1672627719477,30.0,9.9282,9.9209,20.0]
[1672627719693,30.0,9.928,9.9209,20.0]
[1672627720543,75.68,9.9281,9.921,30.0]
[1672627720756,30.0,9.928,9.9211,20.0]
[1672627721375,75.68,9.9281,9.921,45.80730786]
[1672627721593,187.37211708,9.9472,9.921,45.80730786]
[1672627721594,105.66,9.9311,9.9211,88.35311339]
[1672627721792,30.0,9.9311,9.9212,45.80730786]
[1672627722126,30.0,9.9309,9.9213,149.29568766]
[1672627722324,30.0,9.9307,9.9215,30.0]
[1672627722768,30.0,9.9307,9.9216,100.94257427]
[1672627722966,30.0,9.9307,9.9217,30.0]
[1672627723159,30.0,9.9307,9.9218,20.0]
[1672627723491,30.0,9.9307,9.9219,30.0]
[1672627723806,30.0,9.9307,9.9221,30.0]
[1672627724002,30.0,9.9307,9.9222,20.0]
[1672627724210,30.0,9.9307,9.9223,30.0]
[1672627724421,30.0,9.9307,9.9223,45.80730786]
[1672627724632,30.0,9.9307,9.9225,30.0]
[1672627724953,30.0,9.9307,9.9226,35.80730786]
[1672627725268,30.0,9.9307,9.9227,15.80730786]
[1672627725480,30.0,9.9288,9.9227,15.80730786]
[1672627725676,30.0,9.9288,9.9226,20.0]
[1672627725886,30.0,9.9288,9.9219,20.0]
[1672627726856,75.67,9.9287,9.9219,20.0]
[1672627727069,30.0,9.9286,9.9219,20.0]
[1672627729907,30.0,9.9288,9.9219,20.0]
[1672627730939,30.0,9.9288,9.922,30.0]
[1672627731144,30.0,9.9288,9.9221,20.0]
[1672627731380,30.0,9.9288,9.9219,20.0]
[1672627734944,30.0,9.9288,9.922,30.0]
[1672627735168,30.0,9.9288,9.9221,20.0]
[1672627735356,30.0,9.9288,9.9219,20.0]
[1672627735986,24.042,9.9289,9.9219,20.0]
[1672627736302,24.042,9.9289,9.922,30.0]
[1672627736517,24.042,9.9289,9.9221,20.0]
[1672627737372,24.042,9.9289,9.9219,20.0]
[1672627738205,30.0,9.9288,9.9219,20.0]
[1672627738419,30.0,9.9288,9.921,44.0]
[1672627745991,30.0,9.9288,9.9211,30.0]
[1672627746312,30.0,9.9288,9.9212,20.0]
[1672627747984,24.042,9.9289,9.9212,20.0]
[1672627748198,30.0,9.9288,9.9213,30.0]
[1672627748406,30.0,9.9288,9.9214,20.0]
[1672627748609,30.0,9.9288,9.9215,30.0]
[1672627748819,30.0,9.9288,9.9216,20.0]
[1672627749052,24.042,9.9289,9.9216,20.0]
[1672627753881,24.042,9.9289,9.921,24.0]
[1672627753882,30.0,9.9288,9.9212,30.0]
[1672627754106,24.042,9.9289,9.9213,20.0]
[1672627754301,24.042,9.9289,9.9214,30.0]
[1672627754610,24.042,9.9289,9.9215,20.0]
[1672627758715,24.042,9.9289,9.9216,30.0]
[1672627758902,24.042,9.9289,9.9217,20.0]
[1672627759766,30.0,9.9288,9.9217,20.0]
[1672627760293,30.0,9.9288,9.9211,20.0]
[1672627761454,30.0,9.9288,9.9212,30.0]
[1672627761647,30.0,9.9288,9.9213,20.0]
[1672627770686,24.042,9.9289,9.9213,20.0]
[1672627772795,30.0,9.9288,9.9211,20.0]
[1672627775031,30.0,9.9288,9.9212,30.0]
[1672627775207,30.0,9.9288,9.9213,20.0]
[1672627775746,30.0,9.9288,9.9214,15.80730786]
[1672627775952,30.0,9.9288,9.9215,20.0]
[1672627776483,30.0,9.9288,9.9216,15.80730786]
[1672627776893,30.0,9.9288,9.9217,20.0]
[1672627778146,30.0,9.9288,9.9218,15.80730786]
[1672627778359,30.0,9.9288,9.9219,20.0]
[1672627778803,30.0,9.9288,9.922,15.80730786]
[1672627779215,30.0,9.9288,9.9221,20.0]
[1672627780374,30.0,9.9288,9.9212,20.0]
[1672627780777,75.67,9.9287,9.9212,20.0]
[1672627780991,30.0,9.9286,9.9212,20.0]
[1672627781314,30.0,9.9284,9.9212,20.0]
[1672627781526,75.68,9.9283,9.9212,20.0]
[1672627781742,30.0,9.9282,9.9212,20.0]
[1672627781931,30.0,9.928,9.9212,20.0]
[1672627782142,75.68,9.9279,9.9212,20.0]
[1672627782566,30.0,9.9278,9.9212,20.0]
[1672627782803,30.0,9.9276,9.9212,20.0]
[1672627783010,75.68,9.9275,9.9212,20.0]
[1672627783210,30.0,9.9274,9.9212,20.0]
[1672627783415,75.69,9.9273,9.9212,20.0]
[1672627783630,30.0,9.9272,9.9212,20.0]
[1672627788376,75.67,9.9294,9.9212,20.0]
[1672627788583,75.63,9.934,9.9213,15.80730786]
[1672627788790,75.62,9.9354,9.9214,50.0]
[1672627788988,105.66,9.9311,9.9214,50.0]
[1672627789323,105.66,9.9311,9.9215,15.80730786]
[1672627789954,105.66,9.9309,9.9216,20.0]
[1672627790368,105.66,9.9309,9.9217,15.80730786]
[1672627790900,30.0,9.9288,9.9218,20.0]
[1672627795537,75.67,9.9298,9.9219,15.80730786]
[1672627795736,23.5907,9.9299,9.9219,15.80730786]
[1672627795936,23.5907,9.9299,9.922,115.13045864]
[1672627796148,23.5907,9.9299,9.9221,30.0]
[1672627796367,23.5907,9.9299,9.9222,20.0]
[1672627796572,23.5907,9.9299,9.9223,30.0]
[1672627796782,23.5907,9.9299,9.9224,20.0]
[1672627796985,23.5907,9.9299,9.9225,30.0]
[1672627797196,23.5907,9.9299,9.9226,20.0]
[1672627797434,23.5907,9.9299,9.9227,30.0]
[1672627797626,23.5907,9.9299,9.9228,20.0]
[1672627797830,23.5907,9.9299,9.9229,30.0]
[1672627798256,23.5907,9.9299,9.923,35.80730786]
[1672627798462,23.5907,9.9299,9.9231,30.0]
[1672627798677,23.5907,9.9299,9.9232,20.0]
[1672627800573,23.5907,9.9299,9.9233,15.80730786]
[1672627800895,23.5907,9.9299,9.9234,50.0]
[1672627801301,23.5907,9.9299,9.9235,15.80730786]
[1672627801504,23.5907,9.9299,9.9236,30.0]
[1672627801715,23.5907,9.9299,9.9238,30.0]
[1672627802157,23.5907,9.9299,9.9237,35.80730786]
[1672627802364,23.5907,9.9299,9.9238,20.0]
[1672627807109,23.5907,9.9299,9.9239,30.0]
[1672627807420,23.5907,9.9299,9.9241,30.0]
[1672627807946,23.5907,9.9299,9.9243,30.0]
[1672627808470,23.5907,9.9299,9.9244,20.0]
[1672627808663,23.5907,9.9299,9.9245,30.0]
[1672627808875,23.5907,9.9299,9.9246,20.0]
[1672627809097,23.5907,9.9299,9.9244,20.0]
[1672627809305,23.5907,9.9299,9.9244,19.65445756]
[1672627809928,23.5907,9.9299,9.9245,30.0]
[1672627811289,23.5907,9.9299,9.9246,20.0]
[1672627812899,23.5907,9.9299,9.9242,20.0]
[1672627813104,23.5907,9.9299,9.9243,30.0]
[1672627813303,23.5907,9.9299,9.9244,20.0]
[1672627820332,23.5907,9.9299,9.924,20.0]
[1672627820956,23.5907,9.9299,9.9241,30.0]
[1672627821170,23.5907,9.9299,9.9242,20.0]
[1672627821592,23.5907,9.9299,9.9243,30.0]
[1672627821908,23.5907,9.9299,9.9245,30.0]
[1672627822119,23.5907,9.9299,9.9247,30.0]
[1672627822331,23.5907,9.9299,9.9248,20.0]
[1672627824752,23.5907,9.9299,9.925,30.0]
[1672627825166,23.5907,9.9299,9.9251,20.0]
[1672627827374,23.5907,9.9299,9.9244,20.0]
[1672627828649,23.5907,9.9299,9.9245,30.0]
[1672627828873,23.5907,9.9299,9.9246,20.0]
[1672627830756,23.5907,9.9299,9.9244,30.0]
[1672627830963,23.5907,9.9299,9.9245,20.0]
[1672627832522,23.5907,9.9299,9.9246,30.0]
[1672627832727,23.5907,9.9299,9.9247,20.0]
[1672627832957,23.5907,9.9299,9.9248,30.0]
[1672627833275,23.5907,9.9299,9.9249,20.0]
[1672627836319,23.5907,9.9299,9.9246,30.0]
[1672627836511,23.5907,9.9299,9.9247,20.0]
[1672627838308,23.5907,9.9299,9.9248,30.0]
[1672627838838,23.5907,9.9299,9.9249,20.0]
[1672627844633,23.5907,9.9299,9.925,45.80730786]
[1672627844825,23.5907,9.9299,9.9252,30.0]
[1672627845255,23.5907,9.9299,9.9254,30.0]
[1672627845681,23.5907,9.9299,9.9255,35.80730786]
[1672627846090,23.5907,9.9299,9.9256,15.80730786]
[1672627846301,23.5907,9.9299,9.9257,20.0]
[1672627847888,75.64,9.9333,9.9257,20.0]
[1672627847889,75.61,9.9366,9.9257,20.0]
[1672627848084,75.61,9.9366,9.9259,30.0]
[1672627848291,30.0,9.9379,9.93,5.78]
[1672627848502,30.0,9.9377,9.9301,20.0]
[1672627848708,75.61,9.9376,9.9301,20.0]
[1672627848933,30.0,9.9375,9.9261,30.0]
[1672627849139,30.0,9.9373,9.9263,30.0]
[1672627849359,30.0,9.9371,9.93,5.78]
[1672627849569,75.61,9.937,9.93,5.78]
[1672627849893,30.0,9.9369,9.9265,24.22]
[1672627850103,30.0,9.9367,9.93,5.78]
[1672627850329,30.0,9.9367,9.9301,20.0]
[1672627850330,30.0,9.9365,9.9301,20.0]
[1672627850634,30.0,9.9363,9.9301,20.0]
[1672627850839,30.0,9.9363,9.93,5.78]
[1672627851472,30.0,9.9363,9.93,5.72]
[1672627851874,30.0,9.9363,9.93,5.78]
[1672627852294,30.0,9.9363,9.9301,20.0]
[1672627852522,30.0,9.9363,9.9275,30.0]
[1672627852713,30.0,9.9363,9.93,5.78]
[1672627852926,30.0,9.9363,9.9277,30.0]
[1672627853134,30.0,9.9363,9.93,5.72]
[1672627854081,30.0,9.9363,9.93,5.78]
[1672627854292,30.0,9.9363,9.9301,20.0]
[1672627854507,30.0,9.9363,9.9282,199.13989029]
[1672627854722,30.0,9.9363,9.93,5.76]
[1672627855024,30.0,9.9363,9.93,5.72]
[1672627855464,30.0,9.9363,9.93,5.78]
[1672627856307,30.0,9.9363,9.9301,20.0]
[1672627857759,164.30053998,9.9363,9.9301,20.0]
[1672627860608,30.0,9.9363,9.9301,20.0]
[1672627862280,30.0,9.9367,9.9301,20.0]
[1672627867854,30.0,9.9367,9.9292,20.0]
[1672627868288,30.0,9.9365,9.9292,20.0]
[1672627868481,75.62,9.9364,9.9292,20.0]
[1672627868695,30.0,9.9363,9.9292,77.67215997]
[1672627868903,30.0,9.9363,9.9292,20.0]
[1672627872792,164.30053998,9.9363,9.9292,20.0]
[1672627875860,30.0,9.9363,9.9292,20.0]
[1672627877438,30.0,9.9363,9.9293,30.0]
[1672627877649,30.0,9.9363,9.9294,20.0]
[1672627877869,30.0,9.9363,9.9292,20.0]
[1672627882625,30.0,9.9363,9.9291,24.2728]
[1672627883018,30.0,9.9361,9.9291,24.2728]
[1672627883338,30.0,9.9359,9.9291,24.2728]
[1672627883544,75.62,9.9358,9.9291,24.2728]
[1672627883748,30.0,9.9357,9.9291,24.2728]
[1672627883962,30.0,9.9355,9.9291,24.2728]
[1672627884188,30.0,9.9353,9.9291,24.2728]
[1672627884420,30.0,9.9351,9.9291,24.2728]
[1672627884624,75.63,9.935,9.9261,30.0]
[1672627884827,30.0,9.9349,9.9261,30.0]
[1672627885033,75.63,9.9348,9.9262,86.93971925]
[1672627885253,30.0,9.9347,9.9262,86.93971925]
[1672627885464,30.0,9.9345,9.9263,71.13241139]
[1672627885676,75.63,9.9344,9.924,51.43042664]
[1672627885894,30.0,9.9343,9.9241,20.0]
[1672627886102,30.0,9.9341,9.9241,20.0]
[1672627886299,30.0,9.9339,9.9241,20.0]
[1672627886515,75.64,9.9338,9.9242,71.13241139]
[1672627886834,30.0,9.9337,9.9243,20.0]
[1672627887040,75.64,9.9336,9.9243,20.0]
[1672627887253,75.64,9.9336,9.9243,91.13241139]
[1672627887254,30.0,9.9335,9.9243,91.13241139]
[1672627887461,75.64,9.9334,9.9243,91.13241139]
[1672627887670,30.0,9.9333,9.9243,91.13241139]
[1672627888080,30.0,9.9333,9.9244,48.02]
[1672627888291,30.0,9.9331,9.9245,20.0]
[1672627888500,30.0,9.9331,9.9246,48.02]
[1672627888709,30.0,9.9331,9.9246,119.15241139]
[1672627888934,30.0,9.9329,9.9247,91.13241139]
[1672627889131,30.0,9.9329,9.9248,48.02]
[1672627889346,30.0,9.9329,9.9249,20.0]
[1672627889557,30.0,9.9327,9.925,48.02]
[1672627889765,30.0,9.9327,9.9251,20.0]
[1672627891038,164.30053998,9.9327,9.9251,20.0]
[1672627893446,30.0,9.9327,9.9251,20.0]
[1672627895893,30.0,9.9325,9.9251,20.0]
[1672627896302,30.0,9.9325,9.9249,20.0]
[1672627899762,164.30053998,9.9325,9.9249,20.0]
[1672627900614,30.0,9.9323,9.9249,20.0]
[1672627900821,75.65,9.9322,9.9249,20.0]
[1672627901034,30.0,9.9321,9.9249,20.0]
[1672627901236,30.0,9.9319,9.9249,20.0]
[1672627901860,164.30053998,9.9319,9.9249,20.0]
[1672627903049,30.0,9.9319,9.9249,20.0]
[1672627904819,30.0,9.9317,9.9249,20.0]
[1672627905763,30.0,9.9315,9.9249,20.0]
[1672627905956,75.65,9.9314,9.9249,20.0]
[1672627906170,30.0,9.9313,9.9249,20.0]
[1672627906614,30.0,9.9311,9.9249,20.0]
[1672627906802,30.0,9.9309,9.9249,20.0]
[1672627907013,75.66,9.9308,9.9249,20.0]
[1672627907244,30.0,9.9307,9.9249,20.0]
[1672627907866,30.0,9.9305,9.9249,20.0]
[1672627908086,30.0,9.9303,9.9249,20.0]
[1672627913208,75.66,9.9307,9.9249,20.0]
[1672627913532,75.64,9.9336,9.9249,20.0]
[1672627913740,75.64,9.933,9.9249,20.0]
[1672627915019,164.30053998,9.9319,9.9249,20.0]
[1672627916481,134.30053998,9.9319,9.925,30.0]
[1672627916687,134.30053998,9.9319,9.9251,20.0]
[1672627917316,75.64,9.9328,9.9251,20.0]
[1672627917521,75.65,9.932,9.9251,20.0]
[1672627917741,75.65,9.9321,9.9252,30.0]
[1672627918260,75.65,9.9321,9.9253,20.0]
[1672627918471,75.65,9.9321,9.9254,30.0]
[1672627919011,75.65,9.9321,9.9256,30.0]
[1672627919218,75.65,9.9321,9.9257,20.0]
[1672627920796,108.78488715,9.9321,9.9257,20.0]
[1672627920992,209.95053998,9.9321,9.9257,20.0]
[1672627921539,134.30053998,9.9321,9.9258,30.0]
[1672627921728,134.30053998,9.9321,9.9257,20.0]
[1672627921729,30.0,9.932,9.9257,20.0]
[1672627921936,30.0,9.932,9.918,160.07061583]
[1672627921937,30.0,9.932,9.9251,20.0]
[1672627922370,134.30053998,9.932,9.9251,20.0]
[1672627922566,134.30053998,9.932,9.9252,30.0]
[1672627922774,134.30053998,9.932,9.9253,20.0]
[1672627923835,30.0,9.9331,9.9254,30.0]
[1672627924353,30.0,9.9331,9.9255,20.0]
[1672627924563,30.0,9.9331,9.9256,30.0]
[1672627924879,30.0,9.9331,9.9257,20.0]
[1672627925641,22.7021,9.9339,9.9258,30.0]
[1672627926995,158.39043998,9.9322,9.9258,30.0]
[1672627929290,57.22478715,9.9322,9.9258,30.0]
[1672627929506,24.0899,9.9322,9.9258,30.0]
[1672627931284,303.1,9.9457,9.9258,30.0]
[1672627931285,30.0,9.9382,9.9258,30.0]
[1672627931494,75.6,9.9381,9.93,5.71]
[1672627931704,75.6,9.9381,9.9301,20.0]
[1672627931705,30.0,9.938,9.9301,20.0]
[1672627931934,30.0,9.9378,9.9301,20.0]
[1672627932146,75.61,9.9377,9.9301,20.0]
[1672627932355,30.0,9.9376,9.9301,20.0]
[1672627932546,75.61,9.9375,9.9301,20.0]
[1672627932761,30.0,9.9374,9.9301,20.0]
[1672627933087,30.0,9.9372,9.9301,20.0]
[1672627933282,30.0,9.937,9.9301,20.0]
[1672627933619,30.0,9.9368,9.9301,20.0]